fUSD/lending_fUSD_20250107
["ID","MTS","AMOUNT","RATE_DAILY","PERIOD"]
[348010335,1736266249228,-500.0,0.00010135,2]
[348010336,1736266249238,-500.59,0.00010135,2]
[348010337,1736266249249,-500.0,0.00010135,2]
[348010338,1736266249259,-519.16968156,0.00010135,2]
[348010339,1736266249270,-500.0,0.00010135,2]
[348010340,1736266249279,-588.52,0.00010135,2]
[348010341,1736266249289,-871.22,0.00010135,2]
[348010342,1736266249299,-585.73,0.00010135,2]
[348010343,1736266249310,-500.0,0.00010135,2]
[348010344,1736266249320,-839.9,0.00010135,2]
[348010345,1736266249331,-500.0,0.00010135,2]
[348010346,1736266249341,-500.0,0.00010135,2]
[348010347,1736266249351,-500.0,0.00010135,2]
[348010348,1736266249361,-821.82,0.00010135,2]
[348010349,1736266249371,-838.83,0.00010135,2]
[348010350,1736266249383,-500.0,0.00010135,2]
[348010351,1736266249394,-500.0,0.00010135,2]
[348010352,1736266249404,-500.0,0.00010135,2]
[348010353,1736266249415,-500.0,0.00010135,2]
[348010354,1736266249426,-715.22,0.00010135,2]
[348010355,1736266249436,-544.10590707,0.00010135,2]
[348010356,1736266249447,-500.0,0.00010135,2]
[348010357,1736266249723,-500.0,0.00010135,2]
[348010358,1736266249734,-500.0,0.00010135,2]
[348010359,1736266249744,-500.0,0.00010135,2]
[348010360,1736266249754,-500.0,0.00010135,2]
[348010361,1736266249764,-500.0,0.00010135,2]
[348010362,1736266249777,-500.0,0.00010135,2]
[348010363,1736266249787,-500.0,0.00010135,2]
[348010364,1736266249798,-500.0,0.00010135,2]
[348010365,1736266249809,-500.0,0.00010135,2]
[348010366,1736266249819,-500.0,0.00010135,2]
[348010367,1736266249828,-511.36,0.00010135,2]
[348010368,1736266249838,-506.45,0.00010135,2]
[348010369,1736266249848,-500.0,0.00010135,2]
[348010370,1736266249858,-574.89,0.00010135,2]
[348010371,1736266249868,-500.0,0.00010135,2]
[348010372,1736266249878,-2530.24,0.00010135,2]
[348010373,1736266249888,-500.0,0.00010135,2]
[348010374,1736266249898,-500.38248434,0.00010135,2]
[348010375,1736266249907,-500.0,0.00010135,2]
[348010376,1736266249918,-500.0,0.00010135,2]
[348010377,1736266249929,-544.24,0.00010135,2]
[348010378,1736266249939,-500.0,0.00010135,2]
[348010379,1736266249950,-500.0,0.00010135,2]
[348010380,1736266249959,-500.0,0.00010135,2]
[348010381,1736266249973,-500.0,0.00010135,2]
[348010382,1736266249983,-500.0,0.00010135,2]
[348010383,1736266249993,-500.0,0.00010135,2]
[348010384,1736266250003,-500.0,0.00010135,2]
[348010385,1736266250013,-500.0,0.00010135,2]
[348010386,1736266250023,-500.0,0.00010135,2]
[348010387,1736266250032,-743.24,0.00010135,2]
[348010388,1736266250043,-500.89,0.00010135,2]
[348010389,1736266250052,-748.98,0.00010135,2]
[348010390,1736266250062,-735.64,0.00010135,2]
[348010391,1736266250072,-500.0,0.00010135,2]
[348010392,1736266250082,-500.0,0.00010135,2]
[348010393,1736266250091,-500.0,0.00010135,2]
[348010394,1736266250101,-500.0,0.00010135,2]
[348010395,1736266250112,-500.0,0.00010135,2]
[348010396,1736266250122,-500.0,0.00010135,2]
[348010397,1736266250133,-1245.73,0.00010135,2]
[348010398,1736266250142,-500.0,0.00010135,2]
[348010399,1736266250152,-699.64,0.00010135,2]
[348010400,1736266250162,-500.0,0.00010135,2]
[348010401,1736266250171,-500.0,0.00010135,2]
[348010402,1736266250181,-612.0177811,0.00010135,2]
[348010403,1736266250191,-948.64,0.00010135,2]
[348010404,1736266250202,-900.38,0.00010135,2]
[348010405,1736266250211,-500.0,0.00010135,2]
[348010406,1736266250224,-506.0,0.00010135,2]
[348010407,1736266250386,-500.0,0.00010135,2]
[348010408,1736266250396,-683.35,0.00010135,2]
[348010409,1736266250407,-500.0,0.00010135,2]
[348010410,1736266250416,-500.0,0.00010135,2]
[348010411,1736266250426,-3988.07,0.00010135,2]
[348010412,1736266250436,-864.94,0.00010135,2]
[348010413,1736266250447,-500.0,0.00010135,2]
[348010414,1736266250458,-590.5,0.00010135,2]
[348010415,1736266250472,-1382.69,0.00010135,2]
[348010416,1736266250481,-1299.59,0.00010135,2]
[348010417,1736266250492,-608.9075737,0.00010135,2]
[348010418,1736266250505,-500.0,0.00010135,2]
[348010419,1736266250515,-500.0,0.00010135,2]
[348010420,1736266250525,-542.94140953,0.00010135,2]
[348010421,1736266250535,-500.0,0.00010135,2]
[348010422,1736266250545,-599.39,0.00010135,2]
[348010423,1736266250555,-500.0,0.00010135,2]
[348010424,1736266250564,-796.46,0.00010135,2]
[348010425,1736266250574,-500.0,0.00010135,2]
[348010426,1736266250585,-500.0,0.00010135,2]
[348010427,1736266250596,-1117.09,0.00010135,2]
[348010428,1736266250605,-500.0,0.00010135,2]
[348010429,1736266250615,-500.0,0.00010135,2]
[348010430,1736266250625,-550.77,0.00010135,2]
[348010431,1736266250635,-930.41,0.00010135,2]
[348010432,1736266250643,-524.07,0.00010135,2]
[348010433,1736266250653,-610.23,0.00010135,2]
[348010434,1736266250663,-682.9,0.00010135,2]
[348010435,1736266250672,-500.0,0.00010135,2]
[348010436,1736266250683,-500.0,0.00010135,2]
[348010437,1736266250698,-500.0,0.00010135,2]
[348010438,1736266250707,-2600.85,0.00010135,2]
[348010439,1736266250723,-500.0,0.00010135,2]
[348010440,1736266250735,-500.0,0.00010135,2]
[348010441,1736266250745,-633.34616697,0.00010135,2]
[348010442,1736266250754,-508.57,0.00010135,2]
[348010443,1736266250764,-1209.02,0.00010135,2]
[348010444,1736266250774,-500.0,0.00010135,2]
[348010445,1736266250784,-793.19,0.00010135,2]
[348010446,1736266250795,-500.0,0.00010135,2]
[348010447,1736266250806,-500.0,0.00010135,2]
[348010448,1736266250817,-729.25,0.00010135,2]
[348010449,1736266250826,-779.71,0.00010135,2]
[348010450,1736266250836,-500.0,0.00010135,2]
[348010451,1736266250847,-844.39,0.00010135,2]
[348010452,1736266250858,-500.0,0.00010135,2]
[348010453,1736266250868,-500.0,0.00010135,2]
[348010454,1736266250879,-500.0,0.00010135,2]
[348010455,1736266250889,-1190.054877,0.00010135,2]
[348010456,1736266250900,-500.0,0.00010135,2]
[348010457,1736266250909,-1001.36,0.00010135,2]
[348010458,1736266250919,-500.0,0.00010135,2]
[348010459,1736266250929,-675.96,0.00010135,2]
[348010460,1736266250939,-500.0,0.00010135,2]
[348010461,1736266250948,-508.66,0.00010135,2]
[348010462,1736266250958,-500.0,0.00010135,2]
[348010463,1736266250974,-500.0,0.00010135,2]
[348010464,1736266250984,-500.0,0.00010135,2]
[348010465,1736266250995,-961.49,0.00010135,2]
[348010466,1736266251004,-500.0,0.00010135,2]
[348010467,1736266251014,-500.0,0.00010135,2]
[348010468,1736266251024,-500.0,0.00010135,2]
[348010469,1736266251035,-500.0,0.00010135,2]
[348010470,1736266251047,-500.0,0.00010135,2]
[348010471,1736266251056,-244.14,0.00010135,2]
[348010472,1736266251066,-618.98,0.00010135,2]
[348010473,1736266251076,-500.0,0.00010135,2]
[348010474,1736266251087,-647.98,0.00010135,2]
[348010475,1736266251096,-552.98,0.00010135,2]
[348010476,1736266251106,-500.0,0.00010135,2]
[348010477,1736266251116,-500.0,0.00010135,2]
[348010478,1736266251127,-500.0,0.00010135,2]
[348010479,1736266251137,-846.16,0.00010135,2]
[348010480,1736266251147,-427.86132305,0.00010135,2]
[348010481,1736266251156,-1387.59,0.00010135,2]
[348010482,1736266251167,-988.530858,0.00010135,2]
[348010483,1736266251177,-500.0,0.00010135,2]
[348010484,1736266251187,-821.59,0.00010135,2]
[348010485,1736266251196,-500.0,0.00010135,2]
[348010486,1736266251207,-500.0,0.00010135,2]
[348010487,1736266251221,-500.0,0.00010135,2]
[348010488,1736266251230,-500.0,0.00010135,2]
[348010489,1736266251240,-500.0,0.00010135,2]
[348010490,1736266251250,-842.03,0.00010135,2]
[348010491,1736266251260,-500.0,0.00010135,2]
[348010492,1736266251270,-500.0,0.00010135,2]
[348010493,1736266251280,-667.46,0.00010135,2]
[348010494,1736266251290,-500.0,0.00010135,2]
[348010495,1736266251300,-500.0,0.00010135,2]
[348010496,1736266251310,-775.41,0.00010135,2]
[348010497,1736266251319,-626.31,0.00010135,2]
[348010498,1736266251329,-500.0,0.00010135,2]
[348010499,1736266251338,-515.14,0.00010135,2]
[348010500,1736266251348,-565.45,0.00010135,2]
[348010501,1736266251358,-6646.29,0.00010135,2]
[348010502,1736266251368,-505.86,0.00010135,2]
[348010503,1736266251378,-500.0,0.00010135,2]
[348010504,1736266251388,-3633.45,0.00010135,2]
[348010505,1736266251398,-500.0,0.00010135,2]
[348010506,1736266251408,-886.75,0.00010135,2]
[348010507,1736266251418,-500.0,0.00010135,2]
[348010508,1736266251428,-437.86995733,0.00010135,2]
[348010509,1736266251438,-782.62,0.00010135,2]
[348010510,1736266251447,-1088.21,0.00010135,2]
[348010511,1736266251458,-500.0,0.00010135,2]
[348010512,1736266251472,-939.12,0.00010135,2]
[348010513,1736266251481,-500.0,0.00010135,2]
[348010514,1736266251491,-1288.81,0.00010135,2]
[348010515,1736266251502,-1052.21,0.00010135,2]
[348010516,1736266251511,-621.68,0.00010135,2]
[348010517,1736266251520,-500.0,0.00010135,2]
[348010518,1736266251531,-500.0,0.00010135,2]
[348010519,1736266251541,-2751.84,0.00010135,2]
[348010520,1736266251551,-500.0,0.00010135,2]
[348010521,1736266251561,-1048.51,0.00010135,2]
[348010522,1736266251571,-500.0,0.00010135,2]
[348010523,1736266251581,-500.0,0.00010135,2]
[348010524,1736266251591,-921.51,0.00010135,2]
[348010525,1736266251601,-1276.3,0.00010135,2]
[348010526,1736266251610,-186.4796602,0.00010135,2]
[348010527,1736266252164,-313.5203398,0.00010135,2]
[348010528,1736266252173,-500.0,0.00010135,2]
[348010529,1736266252182,-187.1796602,0.00010135,2]
[348010530,1736266252194,-305.41938857,0.00010135,2]
[348010531,1736266252846,-500.0,9.86e-05,2]
[348010532,1736266252856,-35.31825867,9.861e-05,2]
[348010533,1736266252869,-679.08174133,9.861e-05,2]
[348010534,1736266252879,-500.0,9.861e-05,2]
[348010535,1736266252889,-1676.83400855,9.861e-05,2]
[348010536,1736266252912,-287.09599145,9.861e-05,2]
[348010537,1736266252922,-500.0,0.00010134,2]
[348010538,1736266252932,-165.50095123,0.00010135,2]
[348010539,1736266252942,-467.18105834,0.00010135,2]
[348010540,1736266252954,-128.01894166,0.00010135,2]
[348010541,1736266252966,-500.0,0.00010135,2]
[348010542,1736266252976,-500.0,0.00010135,2]
[348010543,1736266252985,-569.13,0.00010135,2]
[348010544,1736266252994,-1493.07,0.00010135,2]
[348010545,1736266253004,-500.0,0.00010135,2]
[348010546,1736266253013,-500.0,0.00010135,2]
[348010547,1736266253023,-500.0,0.00010135,2]
[348010548,1736266253032,-646.78,0.00010135,2]
[348010549,1736266253042,-1088.36,0.00010135,2]
[348010550,1736266253052,-533.44,0.00010135,2]
[348010551,1736266253062,-1293.13,0.00010135,2]
[348010552,1736266253072,-889.99,0.00010135,2]
[348010553,1736266253081,-500.0,0.00010135,2]
[348010554,1736266253090,-581.01,0.00010135,2]
[348010555,1736266253100,-500.0,0.00010135,2]
[348010556,1736266253110,-1144.47,0.00010135,2]
[348010557,1736266253120,-1013.75,0.00010135,2]
[348010558,1736266253130,-500.0,0.00010135,2]
[348010559,1736266253140,-500.0,0.00010135,2]
[348010560,1736266253149,-500.0,0.00010135,2]
[348010561,1736266253159,-696.76,0.00010135,2]
[348010562,1736266253169,-500.0,0.00010135,2]
[348010563,1736266253178,-500.0,0.00010135,2]
[348010564,1736266253188,-500.0,0.00010135,2]
[348010565,1736266253198,-801.95,0.00010135,2]
[348010566,1736266253207,-557.71,0.00010135,2]
[348010567,1736266253218,-500.0,0.00010135,2]
[348010568,1736266253227,-3566.58,0.00010135,2]
[348010569,1736266253237,-500.0,0.00010135,2]
[348010570,1736266253247,-636.05,0.00010135,2]
[348010571,1736266253256,-668.45,0.00010135,2]
[348010572,1736266253266,-500.0,0.00010135,2]
[348010573,1736266253276,-500.0,0.00010135,2]
[348010574,1736266253286,-601.88,0.00010135,2]
[348010575,1736266253295,-500.0,0.00010135,2]
[348010576,1736266253305,-1311.0,0.00010135,2]
[348010577,1736266253315,-3104.09,0.00010135,2]
[348010578,1736266253324,-800.98,0.00010135,2]
[348010579,1736266253334,-500.0,0.00010135,2]
[348010580,1736266253344,-521.32,0.00010135,2]
[348010581,1736266253354,-1074.12,0.00010135,2]
[348010582,1736266253364,-1579.72,0.00010135,2]
[348010583,1736266253375,-1171.54,0.00010135,2]
[348010584,1736266253385,-528.6,0.00010135,2]
[348010585,1736266253394,-2174.75,0.00010135,2]
[348010586,1736266253407,-4957.87,0.00010135,2]
[348010587,1736266253417,-500.0,0.00010135,2]
[348010588,1736266253427,-836.89,0.00010135,2]
[348010589,1736266253436,-2270.43401749,0.00010135,2]
[348010590,1736266253449,-800.0,0.00010135,2]
[348010591,1736266253561,-1906.47598251,0.00010135,2]
[348010592,1736266253570,-795.78,0.00010135,2]
[348010593,1736266253581,-1288.27,0.00010135,2]
[348010594,1736266253590,-502.13915873,0.00010135,2]
[348010595,1736266253600,-2429.07,0.00010135,2]
[348010596,1736266253611,-500.0,0.00010135,2]
[348010597,1736266253621,-1080.02,0.00010135,2]
[348010598,1736266253630,-500.0,0.00010135,2]
[348010599,1736266253640,-500.0,0.00010135,2]
[348010600,1736266253650,-1301.73,0.00010135,2]
[348010601,1736266253659,-59.81801193,0.00010135,2]
[348010602,1736266253671,-313.94229077,0.00010135,2]
[348010603,1736266253684,-126.2396973,0.00010135,2]
[348010604,1736266253695,-192.44030271,0.00010135,2]
[348010605,1736266253707,-307.55969729,0.00010135,2]
[348010606,1736266253720,-680.46,0.00010135,2]
[348010607,1736266253730,-500.0,0.00010135,2]
[348010608,1736266253740,-239.28030271,0.00010135,2]
[348010609,1736266253761,-500.0,9.861e-05,2]
[348010610,1736266253772,-260.71969729,0.00010135,2]
[348010611,1736266253782,-977.51407071,0.00010135,2]
[348010612,1736266253794,-607.04592929,0.00010135,2]
[348010613,1736266253804,-1519.4,0.00010135,2]
[348010614,1736266253815,-511.09,0.00010135,2]
[348010615,1736266253825,-1229.23,0.00010135,2]
[348010616,1736266253835,-500.0,0.00010135,2]
[348010617,1736266253844,-3837.43,0.00010135,2]
[348010618,1736266253855,-8815.01,0.00010135,2]
[348010619,1736266253865,-1326.13,0.00010135,2]
[348010620,1736266253876,-789.12,0.00010135,2]
[348010621,1736266253886,-1482.21,0.00010135,2]
[348010622,1736266253896,-195.33407771,0.00010135,2]
[348010623,1736266254230,-500.0,9.861e-05,2]
[348010624,1736266254240,-364.81828914,9.861e-05,2]
[348010625,1736266254252,-135.18171086,9.861e-05,2]
[348010626,1736266254261,-304.66592229,0.00010135,2]
[348010627,1736266254271,-708.23789344,0.00010135,2]
[348010628,1736266254283,-1019.83210656,0.00010135,2]
[348010629,1736266254294,-240.54567727,0.00010135,2]
[348010630,1736266254303,-1757.08,0.00010135,2]
[348010631,1736266254313,-500.0,0.00010135,2]
[348010632,1736266254323,-617.71,0.00010135,2]
[348010633,1736266254333,-500.0,0.00010135,2]
[348010634,1736266254344,-504.91,0.00010135,2]
[348010635,1736266254354,-500.0,0.00010135,2]
[348010636,1736266254364,-1868.43,0.00010135,2]
[348010637,1736266254374,-1207.9,0.00010135,2]
[348010638,1736266254384,-500.0,0.00010135,2]
[348010639,1736266254395,-528.62,0.00010135,2]
[348010640,1736266254405,-500.0,0.00010135,2]
[348010641,1736266254416,-616.41,0.00010135,2]
[348010642,1736266254426,-5190.51,0.00010135,2]
[348010643,1736266254435,-715.37,0.00010135,2]
[348010644,1736266254445,-500.0,0.00010135,2]
[348010645,1736266254456,-501.70798032,0.00010135,2]
[348010646,1736266254469,-500.0,0.00010135,2]
[348010647,1736266254480,-1805.32,0.00010135,2]
[348010648,1736266254492,-500.0,0.00010135,2]
[348010649,1736266254501,-620.92,0.00010135,2]
[348010650,1736266254512,-505.31944535,0.00010135,2]
[348010651,1736266254522,-714.4,0.00010135,2]
[348010652,1736266254531,-500.0,0.00010135,2]
[348010653,1736266254541,-509.17,0.00010135,2]
[348010654,1736266254551,-45454.12618555,0.00010136,2]
[348010655,1736266254564,-6037.5673039,0.00010136,2]
[348010656,1736266254576,-19469.40000002,0.00010136,2]
[348010657,1736266254587,-983.20789754,0.00010136,2]
[348010658,1736266254614,-979.72,0.00010135,2]
[348010659,1736266254667,-500.0,9.861e-05,2]
[348010660,1736266254678,-500.0,9.999e-05,2]
[348010661,1736266254689,-984.21,0.00010135,2]
[348010662,1736266254702,-463.23873128,0.00010135,2]
[348010663,1736266254714,-36.76126872,0.00010135,2]
[348010664,1736266254726,-16963.23873133,0.00010136,2]
[348010665,1736266254738,-19600.0,0.00010136,2]
[348010666,1736266254750,-359.54999576,0.00010136,2]
[348010667,1736266254762,-928.24799895,0.00010136,2]
[348010668,1736266255018,-500.0,9.86e-05,2]
[348010669,1736266255028,-500.0,0.00010134,2]
[348010670,1736266255038,-501.78,0.00010135,2]
[348010671,1736266255048,-54044.34782247,0.00010136,2]
[348010672,1736266255057,-500.0,0.00010136,2]
[348010673,1736266255067,-683.29,0.00010136,2]
[348010674,1736266255077,-500.0,0.00010136,2]
[348010675,1736266255087,-500.0,0.00010136,2]
[348010676,1736266255097,-650.65,0.00010136,2]
[348010677,1736266255107,-500.0,0.00010136,2]
[348010678,1736266255117,-500.0,0.00010136,2]
[348010679,1736266255127,-500.0,0.00010136,2]
[348010680,1736266255137,-500.0,0.00010136,2]
[348010681,1736266255147,-505.97515746,0.00010136,2]
[348010682,1736266255156,-500.0,0.00010136,2]
[348010683,1736266255167,-500.0,0.00010136,2]
[348010684,1736266255176,-507.64647025,0.00010136,2]
[348010685,1736266255186,-395.73691582,0.00010136,2]
[348010686,1736266255195,-500.0,0.00010136,2]
[348010687,1736266255205,-505.83691093,0.00010136,2]
[348010688,1736266255214,-506.43093275,0.00010136,2]
[348010689,1736266255225,-500.0,0.00010136,2]
[348010690,1736266255235,-500.0,0.00010136,2]
[348010691,1736266255245,-500.0,0.00010136,2]
[348010692,1736266255255,-500.0,0.00010136,2]
[348010693,1736266255265,-500.0,0.00010136,2]
[348010694,1736266255275,-500.0,0.00010136,2]
[348010695,1736266255286,-500.0,0.00010136,2]
[348010696,1736266255295,-500.0,0.00010136,2]
[348010697,1736266255305,-500.0,0.00010136,2]
[348010698,1736266255315,-500.0,0.00010136,2]
[348010699,1736266255324,-501.10648504,0.00010136,2]
[348010700,1736266255334,-500.0,0.00010136,2]
[348010701,1736266255343,-500.0,0.00010136,2]
[348010702,1736266255353,-620.28,0.00010136,2]
[348010703,1736266255363,-500.0,0.00010136,2]
[348010704,1736266255373,-557.74,0.00010136,2]
[348010705,1736266255383,-500.0,0.00010136,2]
[348010706,1736266255393,-500.0,0.00010136,2]
[348010707,1736266255403,-500.0,0.00010136,2]
[348010708,1736266255413,-500.0,0.00010136,2]
[348010709,1736266255423,-500.0,0.00010136,2]
[348010710,1736266255433,-552.98,0.00010136,2]
[348010711,1736266255443,-500.0,0.00010136,2]
[348010712,1736266255453,-514.03,0.00010136,2]
[348010713,1736266255463,-500.0,0.00010136,2]
[348010714,1736266255475,-500.0,0.00010136,2]
[348010715,1736266255485,-500.0,0.00010136,2]
[348010716,1736266255497,-500.0,0.00010136,2]
[348010717,1736266255508,-500.0,0.00010136,2]
[348010718,1736266255518,-500.0,0.00010136,2]
[348010719,1736266255528,-500.0,0.00010136,2]
[348010720,1736266255538,-500.0,0.00010136,2]
[348010721,1736266255547,-500.0,0.00010136,2]
[348010722,1736266255557,-575.34,0.00010136,2]
[348010723,1736266255567,-500.0,0.00010136,2]
[348010724,1736266255577,-500.0,0.00010136,2]
[348010725,1736266255587,-500.0,0.00010136,2]
[348010726,1736266255597,-500.0,0.00010136,2]
[348010727,1736266255607,-500.0,0.00010136,2]
[348010728,1736266255617,-500.0,0.00010136,2]
[348010729,1736266255627,-500.0,0.00010136,2]
[348010730,1736266255636,-500.0,0.00010136,2]
[348010731,1736266255646,-500.0,0.00010136,2]
[348010732,1736266255656,-500.0,0.00010136,2]
[348010733,1736266255667,-500.0,0.00010136,2]
[348010734,1736266255676,-500.0,0.00010136,2]
[348010735,1736266255690,-348.57,0.00010136,2]
[348010736,1736266255700,-500.0,0.00010136,2]
[348010737,1736266255710,-920.08,0.00010136,2]
[348010738,1736266255721,-500.0,0.00010136,2]
[348010739,1736266255732,-658.42,0.00010136,2]
[348010740,1736266255743,-500.0,0.00010136,2]
[348010741,1736266255753,-500.0,0.00010136,2]
[348010742,1736266255764,-500.0,0.00010136,2]
[348010743,1736266255774,-500.0,0.00010136,2]
[348010744,1736266255784,-500.0,0.00010136,2]
[348010745,1736266255793,-544.4,0.00010136,2]
[348010746,1736266255805,-500.0,0.00010136,2]
[348010747,1736266255815,-500.0,0.00010136,2]
[348010748,1736266255825,-500.0,0.00010136,2]
[348010749,1736266255836,-605.45,0.00010136,2]
[348010750,1736266255845,-500.0,0.00010136,2]
[348010751,1736266255855,-500.0,0.00010136,2]
[348010752,1736266255866,-800.9,0.00010136,2]
[348010753,1736266255875,-500.0,0.00010136,2]
[348010754,1736266255885,-500.0,0.00010136,2]
[348010755,1736266255895,-582.04,0.00010136,2]
[348010756,1736266255905,-500.0,0.00010136,2]
[348010757,1736266255915,-501.78641158,0.00010136,2]
[348010758,1736266255926,-500.0,0.00010136,2]
[348010759,1736266255936,-329.00951025,0.00010136,2]
[348010760,1736266255946,-500.0,0.00010136,2]
[348010761,1736266255956,-500.0,0.00010136,2]
[348010762,1736266255967,-511.66270699,0.00010136,2]
[348010763,1736266255978,-312.20079651,0.00010136,2]
[348010764,1736266256197,-975.39920349,0.00010136,2]
[348010765,1736266256224,-3.99079651,0.00010136,2]
[348010766,1736266256252,-505.87875668,0.00010136,2]
[348010767,1736266256263,-334.49881332,0.00010136,2]
[348010768,1736266256275,-165.50118668,0.00010136,2]
[348010769,1736266256286,-572.98,0.00010136,2]
[348010770,1736266256296,-511.49,0.00010136,2]
[348010771,1736266256306,-839.07,0.00010136,2]
[348010772,1736266256316,-500.0,0.00010136,2]
[348010773,1736266256325,-500.0,0.00010136,2]
[348010774,1736266256335,-533.96,0.00010136,2]
[348010775,1736266256345,-1014.1,0.00010136,2]
[348010776,1736266256355,-500.0,0.00010136,2]
[348010777,1736266256365,-500.0,0.00010136,2]
[348010778,1736266256375,-141.52446105,0.00010136,2]
[348010779,1736266256387,-659.40553895,0.00010136,2]
[348010780,1736266256396,-500.0,0.00010136,2]
[348010781,1736266256406,-500.0,0.00010136,2]
[348010782,1736266256415,-500.0,0.00010136,2]
[348010783,1736266256424,-500.0,0.00010136,2]
[348010784,1736266256433,-734.52,0.00010136,2]
[348010785,1736266256443,-500.0,0.00010136,2]
[348010786,1736266256452,-1011.44,0.00010136,2]
[348010787,1736266256461,-508.78,0.00010136,2]
[348010788,1736266256473,-650.67,0.00010136,2]
[348010789,1736266256483,-1159.16,0.00010136,2]
[348010790,1736266256493,-1136.49,0.00010136,2]
[348010791,1736266256502,-500.0,0.00010136,2]
[348010792,1736266256511,-3955.95,0.00010136,2]
[348010793,1736266256520,-500.0,0.00010136,2]
[348010794,1736266256530,-1387.63,0.00010136,2]
[348010795,1736266256539,-500.0,0.00010136,2]
[348010796,1736266256548,-500.0,0.00010136,2]
[348010797,1736266256557,-500.0,0.00010136,2]
[348010798,1736266256566,-573.37,0.00010136,2]
[348010799,1736266256576,-622.34856555,0.00010136,2]
[348010800,1736266256639,-311.89143445,0.00010136,2]
[348010801,1736266256649,-53.52355555,0.00010136,2]
[348010802,1736266256668,-451.80807502,0.00010136,2]
[348010803,1736266256678,-1267.31,0.00010136,2]
[348010804,1736266256688,-500.0,0.00010136,2]
[348010805,1736266256701,-669.78,0.00010136,2]
[348010806,1736266256710,-500.0,0.00010136,2]
[348010807,1736266256722,-1377.06,0.00010136,2]
[348010808,1736266256732,-500.0,0.00010136,2]
[348010809,1736266256742,-629.76,0.00010136,2]
[348010810,1736266256752,-500.0,0.00010136,2]
[348010811,1736266256761,-1509.89,0.00010136,2]
[348010812,1736266256771,-167.05675434,0.00010136,2]
[348010813,1736266256781,-1258.57,0.00010136,2]
[348010814,1736266256791,-500.0,0.00010136,2]
[348010815,1736266256801,-2127.7,0.00010136,2]
[348010816,1736266256812,-500.0,0.00010136,2]
[348010817,1736266256821,-677.87,0.00010136,2]
[348010818,1736266256831,-500.0,0.00010136,2]
[348010819,1736266256839,-500.0,0.00010136,2]
[348010820,1736266256848,-869.51,0.00010136,2]
[348010821,1736266256857,-500.0,0.00010136,2]
[348010822,1736266256866,-758.89798764,0.00010136,2]
[348010823,1736266257411,-500.0,9.86e-05,2]
[348010824,1736266257421,-269.45156274,9.861e-05,2]
[348010825,1736266257441,-230.54843726,9.861e-05,2]
[348010826,1736266257450,-207.9269247,0.00010134,2]
[348010827,1736266257462,-292.0730753,0.00010134,2]
[348010828,1736266257475,-1190.45201236,0.00010136,2]
[348010829,1736266257484,-500.0,0.00010136,2]
[348010830,1736266257493,-531.8,0.00010136,2]
[348010831,1736266257503,-1118.37076894,0.00010136,2]
[348010832,1736266257575,-500.0,9.861e-05,2]
[348010833,1736266257584,-793.72923106,0.00010136,2]
[348010834,1736266257594,-695.96,0.00010136,2]